fUST/lending_fUST_20260525
["ID","MTS","AMOUNT","RATE_DAILY","PERIOD"]
[422992430,1779723045000,-500.0,8.767e-05,2]
[422992427,1779723045000,-500.0,8.767e-05,2]
[422992424,1779723045000,-500.0,8.767e-05,2]
[422992426,1779723045000,-500.0,8.767e-05,2]
[422992428,1779723045000,-500.0,8.767e-05,2]
[422992413,1779723045000,-500.0,8.767e-05,2]
[422992459,1779723045000,-1585.97,8.767e-05,2]
[422992452,1779723045000,-500.0,8.767e-05,2]
[422992457,1779723045000,-500.0,8.767e-05,2]
[422992505,1779723045000,-697.94,8.767e-05,2]
[422992500,1779723045000,-683.49,8.767e-05,2]
[422992499,1779723045000,-1098.35,8.767e-05,2]
[422992502,1779723045000,-500.0,8.767e-05,2]
[422992501,1779723045000,-5447.96,8.767e-05,2]
[422992504,1779723045000,-500.0,8.767e-05,2]
[422992503,1779723045000,-500.0,8.767e-05,2]
[422992497,1779723045000,-500.0,8.767e-05,2]
[422992498,1779723045000,-501.08406998,8.767e-05,2]
[422992509,1779723045000,-543.13,8.767e-05,2]
[422992519,1779723045000,-500.0,8.767e-05,2]
[422992510,1779723045000,-500.0,8.767e-05,2]
[422992508,1779723045000,-501.17298738,8.767e-05,2]
[422992506,1779723045000,-500.0,8.767e-05,2]
[422992511,1779723045000,-500.0,8.767e-05,2]
[422992514,1779723045000,-13010.11,8.767e-05,2]
[422992515,1779723045000,-500.0,8.767e-05,2]
[422992517,1779723045000,-769.33,8.767e-05,2]
[422992513,1779723045000,-824.05,8.767e-05,2]
[422992516,1779723045000,-500.0,8.767e-05,2]
[422992518,1779723045000,-2316.94,8.767e-05,2]
[422992520,1779723045000,-500.0,8.767e-05,2]
[422992521,1779723045000,-500.0,8.767e-05,2]
[422992525,1779723045000,-500.0,8.767e-05,2]
[422992526,1779723045000,-547.81,8.767e-05,2]
[422992522,1779723045000,-500.0,8.767e-05,2]
[422992523,1779723045000,-587.9,8.767e-05,2]
[422992463,1779723045000,-1134.64,8.767e-05,2]
[422992512,1779723045000,-500.0,8.767e-05,2]
[422992495,1779723045000,-5119.19,8.767e-05,2]
[422992524,1779723045000,-1043.53,8.767e-05,2]
[422992496,1779723045000,-500.0,8.767e-05,2]
[422992507,1779723045000,-833.59,8.767e-05,2]
[422992466,1779723045000,-789.92,8.767e-05,2]
[422992465,1779723045000,-605.62,8.767e-05,2]
[422992470,1779723045000,-500.0,8.767e-05,2]
[422992478,1779723045000,-1621.16,8.767e-05,2]
[422992469,1779723045000,-684.15,8.767e-05,2]
[422992472,1779723045000,-236.81966429,8.767e-05,2]
[422992473,1779723045000,-500.0,8.767e-05,2]
[422992480,1779723045000,-500.0,8.767e-05,2]
[422992476,1779723045000,-500.0,8.767e-05,2]
[422992474,1779723045000,-500.0,8.767e-05,2]
[422992479,1779723045000,-500.0,8.767e-05,2]
[422992471,1779723045000,-500.0,8.767e-05,2]
[422992477,1779723045000,-500.0,8.767e-05,2]
[422992464,1779723045000,-500.0,8.767e-05,2]
[422992482,1779723045000,-500.0,8.767e-05,2]
[422992475,1779723045000,-500.0,8.767e-05,2]
[422992488,1779723045000,-500.0,8.767e-05,2]
[422992490,1779723045000,-500.0,8.767e-05,2]
[422992484,1779723045000,-500.0,8.767e-05,2]
[422992486,1779723045000,-794.19,8.767e-05,2]
[422992487,1779723045000,-500.0,8.767e-05,2]
[422992483,1779723045000,-803.04,8.767e-05,2]
[422992481,1779723045000,-500.0,8.767e-05,2]
[422992491,1779723045000,-633.5,8.767e-05,2]
[422992489,1779723045000,-500.0,8.767e-05,2]
[422992494,1779723045000,-1578.88,8.767e-05,2]
[422992493,1779723045000,-527.78,8.767e-05,2]
[422992492,1779723045000,-515.25,8.767e-05,2]
[422992485,1779723045000,-500.0,8.767e-05,2]
[422992568,1779723046000,-500.0,9.041e-05,2]
[422992574,1779723046000,-500.0,9.041e-05,2]
[422992573,1779723046000,-500.0,9.041e-05,2]
[422992575,1779723046000,-500.0,9.041e-05,2]
[422992577,1779723046000,-500.0,9.041e-05,2]
[422992571,1779723046000,-500.0,9.041e-05,2]
[422992563,1779723046000,-514.91,9.041e-05,2]
[422992565,1779723046000,-500.0,9.041e-05,2]
[422992566,1779723046000,-500.0,9.041e-05,2]
[422992557,1779723046000,-500.0,9.041e-05,2]
[422992569,1779723046000,-500.0,9.041e-05,2]
[422992556,1779723046000,-500.0,9.041e-05,2]
[422992580,1779723046000,-625.50364375,9.041e-05,2]
[422992572,1779723046000,-500.0,9.041e-05,2]
[422992579,1779723046000,-637.63239537,9.041e-05,2]
[422992578,1779723046000,-500.0,9.041e-05,2]
[422992581,1779723046000,-501.20120435,9.041e-05,2]
[422992582,1779723046000,-500.0,9.041e-05,2]
[422992586,1779723046000,-500.0,9.041e-05,2]
[422992583,1779723046000,-500.0,9.041e-05,2]
[422992584,1779723046000,-500.0,9.041e-05,2]
[422992587,1779723046000,-500.0,9.041e-05,2]
[422992585,1779723046000,-500.0,9.041e-05,2]
[422992588,1779723046000,-614.49,9.041e-05,2]
[422992553,1779723046000,-463.77944852,9.041e-05,2]
[422992590,1779723046000,-500.0,9.041e-05,2]
[422992576,1779723046000,-500.0,9.041e-05,2]
[422992551,1779723046000,-501.82888644,9.041e-05,2]
[422992537,1779723046000,-500.0,9.041e-05,2]
[422992555,1779723046000,-500.0,9.041e-05,2]
[422992591,1779723046000,-500.0,9.041e-05,2]
[422992530,1779723046000,-2633.36374349,8.835e-05,2]
[422992531,1779723046000,-4537.68005472,8.89e-05,2]
[422992528,1779723046000,-712.8672862,8.789e-05,2]
[422992529,1779723046000,-1719.28376902,8.821e-05,2]
[422992532,1779723046000,-351.11968186,9e-05,2]
[422992527,1779723046000,-500.0,8.767e-05,2]
[422992535,1779723046000,-500.0,9.041e-05,2]
[422992533,1779723046000,-1094.4034,9.041e-05,2]
[422992534,1779723046000,-500.0,9.041e-05,2]
[422992544,1779723046000,-500.0,9.041e-05,2]
[422992541,1779723046000,-474.85908908,9.041e-05,2]
[422992546,1779723046000,-500.0,9.041e-05,2]
[422992539,1779723046000,-500.0,9.041e-05,2]
[422992545,1779723046000,-500.0,9.041e-05,2]
[422992536,1779723046000,-500.0,9.041e-05,2]
[422992540,1779723046000,-500.0,9.041e-05,2]
[422992542,1779723046000,-500.0,9.041e-05,2]
[422992543,1779723046000,-500.0,9.041e-05,2]
[422992538,1779723046000,-500.0,9.041e-05,2]
[422992548,1779723046000,-500.0,9.041e-05,2]
[422992559,1779723046000,-334.3,9.041e-05,2]
[422992561,1779723046000,-1530.05,9.041e-05,2]
[422992552,1779723046000,-361.07942581,9.041e-05,2]
[422992547,1779723046000,-500.0,9.041e-05,2]
[422992549,1779723046000,-500.0,9.041e-05,2]
[422992550,1779723046000,-500.0,9.041e-05,2]
[422992554,1779723046000,-500.0,9.041e-05,2]
[422992589,1779723046000,-540.73,9.041e-05,2]
[422992570,1779723046000,-623.60612776,9.041e-05,2]
[422992601,1779723046000,-500.0,9.041e-05,2]
[422992627,1779723046000,-794.19,9.041e-05,2]
[422992634,1779723046000,-633.5,9.041e-05,2]
[422992645,1779723046000,-1098.35,9.041e-05,2]
[422992640,1779723046000,-3963.12907098,9.041e-05,2]
[422992646,1779723046000,-683.49,9.041e-05,2]
[422992639,1779723046000,-1578.88,9.041e-05,2]
[422992636,1779723046000,-515.25,9.041e-05,2]
[422992644,1779723046000,-500.0,9.041e-05,2]
[422992642,1779723046000,-1156.06092902,9.041e-05,2]
[422992638,1779723046000,-527.78,9.041e-05,2]
[422992647,1779723046000,-5447.96,9.041e-05,2]
[422992649,1779723046000,-500.0,9.041e-05,2]
[422992643,1779723046000,-500.0,9.041e-05,2]
[422992650,1779723046000,-500.0,9.041e-05,2]
[422992661,1779723046000,-13010.11,9.041e-05,2]
[422992662,1779723046000,-500.0,9.041e-05,2]
[422992652,1779723046000,-500.0,9.041e-05,2]
[422992659,1779723046000,-500.0,9.041e-05,2]
[422992655,1779723046000,-833.59,9.041e-05,2]
[422992653,1779723046000,-697.94,9.041e-05,2]
[422992658,1779723046000,-500.0,9.041e-05,2]
[422992657,1779723046000,-500.0,9.041e-05,2]
[422992654,1779723046000,-500.0,9.041e-05,2]
[422992660,1779723046000,-824.05,9.041e-05,2]
[422992664,1779723046000,-769.33,9.041e-05,2]
[422992665,1779723046000,-882.13683094,9.041e-05,2]
[422992599,1779723046000,-500.0,9.041e-05,2]
[422992630,1779723046000,-500.0,9.041e-05,2]
[422992632,1779723046000,-500.0,9.041e-05,2]
[422992656,1779723046000,-543.13,9.041e-05,2]
[422992624,1779723046000,-803.04,9.041e-05,2]
[422992628,1779723046000,-500.0,9.041e-05,2]
[422992592,1779723046000,-500.0,9.041e-05,2]
[422992598,1779723046000,-1585.97,9.041e-05,2]
[422992593,1779723046000,-744.3,9.041e-05,2]
[422992602,1779723046000,-500.0,9.041e-05,2]
[422992596,1779723046000,-500.0,9.041e-05,2]
[422992613,1779723046000,-500.0,9.041e-05,2]
[422992612,1779723046000,-500.0,9.041e-05,2]
[422992603,1779723046000,-1134.64,9.041e-05,2]
[422992605,1779723046000,-605.62,9.041e-05,2]
[422992606,1779723046000,-789.92,9.041e-05,2]
[422992614,1779723046000,-500.0,9.041e-05,2]
[422992615,1779723046000,-500.0,9.041e-05,2]
[422992604,1779723046000,-605.54135037,9.041e-05,2]
[422992611,1779723046000,-500.0,9.041e-05,2]
[422992617,1779723046000,-1621.16,9.041e-05,2]
[422992607,1779723046000,-715.46,9.041e-05,2]
[422992625,1779723046000,-500.0,9.041e-05,2]
[422992623,1779723046000,-500.0,9.041e-05,2]
[422992621,1779723046000,-500.0,9.041e-05,2]
[422992626,1779723046000,-500.0,9.041e-05,2]
[422992619,1779723046000,-500.0,9.041e-05,2]
[422992594,1779723046000,-1595.42,9.041e-05,2]
[422992618,1779723046000,-500.0,9.041e-05,2]
[422992616,1779723046000,-500.0,9.041e-05,2]
[422992610,1779723046000,-500.0,9.041e-05,2]
[422992609,1779723046000,-684.15,9.041e-05,2]
[422992663,1779723046000,-500.0,9.041e-05,2]
[422992608,1779723046000,-500.0,9.041e-05,2]
[422992684,1779723047000,-357.11024801,9.133e-05,7]
[422992694,1779723047000,-5000.0,9.17e-05,2]
[422992691,1779723047000,-339.46006575,9.133e-05,7]
[422992693,1779723047000,-5008.30502997,9.17e-05,2]
[422992695,1779723047000,-5000.0,9.17e-05,2]
[422992692,1779723047000,-349.75425866,9.134e-05,7]
[422992689,1779723047000,-364.49470954,9.133e-05,7]
[422992690,1779723047000,-414.5069213,9.133e-05,7]
[422992699,1779723047000,-202.6761329,9.215e-05,2]
[422992697,1779723047000,-2066.6249166,9.17e-05,2]
[422992687,1779723047000,-349.44059147,9.133e-05,7]
[422992696,1779723047000,-5000.0,9.17e-05,2]
[422992700,1779723047000,-1712.97489335,9.245e-05,2]
[422992707,1779723047000,-500.0,9.315e-05,2]
[422992703,1779723047000,-500.0,9.315e-05,2]
[422992708,1779723047000,-500.0,9.315e-05,2]
[422992688,1779723047000,-347.15472461,9.133e-05,7]
[422992702,1779723047000,-500.0,9.315e-05,2]
[422992672,1779723047000,-1043.53,9.041e-05,2]
[422992686,1779723047000,-245.87571174,9.133e-05,7]
[422992701,1779723047000,-1094.4034,9.315e-05,2]
[422992666,1779723047000,-1434.80316906,9.041e-05,2]
[422992667,1779723047000,-500.0,9.041e-05,2]
[422992669,1779723047000,-481.48564224,9.041e-05,2]
[422992670,1779723047000,-501.35082466,9.041e-05,2]
[422992668,1779723047000,-501.41082154,9.041e-05,2]
[422992683,1779723047000,-231.85893194,9.133e-05,7]
[422992671,1779723047000,-587.9,9.041e-05,2]
[422992685,1779723047000,-309.51820752,9.133e-05,7]
[422992673,1779723047000,-500.0,9.041e-05,2]
[422992674,1779723047000,-547.81,9.041e-05,2]
[422992675,1779723047000,-500.0,9.041e-05,2]
[422992678,1779723047000,-10000.0,9.123e-05,2]
[422992681,1779723047000,-241.09168388,9.133e-05,7]
[422992676,1779723047000,-1484.98300734,9.062e-05,2]
[422992679,1779723047000,-171.24432677,9.132e-05,7]
[422992680,1779723047000,-320.20553385,9.132e-05,7]
[422992677,1779723047000,-305.69140291,9.107e-05,2]
[422992682,1779723047000,-234.86103115,9.133e-05,7]
[422992698,1779723047000,-2933.3750834,9.17e-05,2]
[422992737,1779723047000,-500.0,9.315e-05,2]
[422992705,1779723047000,-380.51584571,9.315e-05,2]
[422992725,1779723047000,-500.0,9.315e-05,2]
[422992727,1779723047000,-500.0,9.315e-05,2]
[422992730,1779723047000,-500.0,9.315e-05,2]
[422992734,1779723047000,-500.0,9.315e-05,2]
[422992732,1779723047000,-500.0,9.315e-05,2]
[422992729,1779723047000,-614.76116514,9.315e-05,2]
[422992739,1779723047000,-614.49,9.315e-05,2]
[422992704,1779723047000,-500.0,9.315e-05,2]
[422992740,1779723047000,-500.0,9.315e-05,2]
[422992741,1779723047000,-500.0,9.315e-05,2]
[422992744,1779723047000,-744.3,9.315e-05,2]
[422992743,1779723047000,-138.66954068,9.315e-05,2]
[422992742,1779723047000,-361.33045932,9.315e-05,2]
[422992745,1779723047000,-1131.94066728,9.315e-05,2]
[422992747,1779723047000,-500.0,8.493e-05,2]
[422992746,1779723047000,-500.0,8.219e-05,2]
[422992748,1779723047000,-187.34,9.315e-05,2]
[422992731,1779723047000,-500.0,9.315e-05,2]
[422992728,1779723047000,-458.45,9.315e-05,2]
[422992738,1779723047000,-487.72,9.315e-05,2]
[422992735,1779723047000,-500.0,9.315e-05,2]
[422992733,1779723047000,-500.0,9.315e-05,2]
[422992706,1779723047000,-500.0,9.315e-05,2]
[422992709,1779723047000,-500.0,9.315e-05,2]
[422992712,1779723047000,-500.0,9.315e-05,2]
[422992711,1779723047000,-560.81,9.315e-05,2]
[422992716,1779723047000,-500.0,9.315e-05,2]
[422992710,1779723047000,-235.72,9.315e-05,2]
[422992713,1779723047000,-500.0,9.315e-05,2]
[422992715,1779723047000,-500.0,9.315e-05,2]
[422992719,1779723047000,-500.0,9.315e-05,2]
[422992718,1779723047000,-500.0,9.315e-05,2]
[422992726,1779723047000,-500.0,9.315e-05,2]
[422992721,1779723047000,-1187.94422709,9.315e-05,2]
[422992724,1779723047000,-646.10068089,9.315e-05,2]
[422992736,1779723047000,-500.0,9.315e-05,2]
[422992722,1779723047000,-514.91,9.315e-05,2]
[422992723,1779723047000,-500.0,9.315e-05,2]
[422992720,1779723047000,-342.10577291,9.315e-05,2]
[422992766,1779723048000,-789.92,9.315e-05,2]
[422992772,1779723048000,-500.0,9.315e-05,2]
[422992770,1779723048000,-500.0,9.315e-05,2]
[422992771,1779723048000,-500.0,9.315e-05,2]
[422992774,1779723048000,-500.0,9.315e-05,2]
[422992769,1779723048000,-684.15,9.315e-05,2]
[422992768,1779723048000,-500.0,9.315e-05,2]
[422992767,1779723048000,-715.46,9.315e-05,2]
[422992757,1779723048000,-525.21,8.767e-05,2]
[422992764,1779723048000,-1134.64,9.315e-05,2]
[422992763,1779723048000,-500.0,9.315e-05,2]
[422992761,1779723048000,-500.0,9.315e-05,2]
[422992762,1779723048000,-500.0,9.315e-05,2]
[422992760,1779723048000,-1585.97,9.315e-05,2]
[422992759,1779723048000,-500.0,9.315e-05,2]
[422992756,1779723048000,-1194.4776297,8.388e-05,2]
[422992758,1779723048000,-276.13933272,9.315e-05,2]
[422992765,1779723048000,-605.62,9.315e-05,2]
[422992776,1779723048000,-500.0,9.315e-05,2]
[422992773,1779723048000,-500.0,9.315e-05,2]
[422992775,1779723048000,-500.0,9.315e-05,2]
[422992785,1779723048000,-794.19,9.315e-05,2]
[422992795,1779723048000,-500.0,8.219e-05,2]
[422992796,1779723048000,-69.37999998,8.219e-05,2]
[422992791,1779723048000,-527.78,9.315e-05,2]
[422992792,1779723048000,-1578.88,9.315e-05,2]
[422992793,1779723048000,-2163.20432729,9.315e-05,2]
[422992789,1779723048000,-633.5,9.315e-05,2]
[422992787,1779723048000,-500.0,9.315e-05,2]
[422992790,1779723048000,-515.25,9.315e-05,2]
[422992794,1779723048000,-918.23828591,9.315e-05,2]
[422992784,1779723048000,-500.0,9.315e-05,2]
[422992783,1779723048000,-500.0,9.315e-05,2]
[422992778,1779723048000,-500.0,9.315e-05,2]
[422992782,1779723048000,-803.04,9.315e-05,2]
[422992777,1779723048000,-1621.16,9.315e-05,2]
[422992780,1779723048000,-500.0,9.315e-05,2]
[422992786,1779723048000,-500.0,9.315e-05,2]
[422992781,1779723048000,-500.0,9.315e-05,2]
[422992779,1779723048000,-500.0,9.315e-05,2]
[422992788,1779723048000,-500.0,9.315e-05,2]
[422992833,1779723049000,-2316.94,9.315e-05,2]
[422992830,1779723049000,-500.0,9.315e-05,2]
[422992832,1779723049000,-769.33,9.315e-05,2]
[422992829,1779723049000,-13010.11,9.315e-05,2]
[422992825,1779723049000,-500.0,8.219e-05,2]
[422992828,1779723049000,-824.05,9.315e-05,2]
[422992823,1779723049000,-500.0,9.315e-05,2]
[422992821,1779723049000,-833.59,9.315e-05,2]
[422992831,1779723049000,-500.0,9.315e-05,2]
[422992827,1779723049000,-503.89675225,9.315e-05,2]
[422992834,1779723049000,-500.0,9.315e-05,2]
[422992846,1779723049000,-2633.36374349,9.452e-05,2]
[422992837,1779723049000,-500.0,9.315e-05,2]
[422992836,1779723049000,-1043.53,9.315e-05,2]
[422992838,1779723049000,-547.81,9.315e-05,2]
[422992840,1779723049000,-557.96,9.315e-05,2]
[422992839,1779723049000,-500.0,9.315e-05,2]
[422992843,1779723049000,-5368.45764219,9.322e-05,2]
[422992844,1779723049000,-1000.0,9.378e-05,2]
[422992841,1779723049000,-3312.23,9.315e-05,2]
[422992842,1779723049000,-500.0,9.315e-05,2]
[422992826,1779723049000,-408.27887307,9.315e-05,2]
[422992848,1779723049000,-244.29171734,9.537e-05,7]
[422992835,1779723049000,-587.9,9.315e-05,2]
[422992822,1779723049000,-543.13,9.315e-05,2]
[422992810,1779723049000,-2037.7473868,9.315e-05,2]
[422992818,1779723049000,-500.0,9.315e-05,2]
[422992806,1779723049000,-3312.23,8.767e-05,2]
[422992797,1779723049000,-3242.85000002,8.219e-05,2]
[422992801,1779723049000,-557.96,8.493e-05,2]
[422992798,1779723049000,-557.96,8.219e-05,2]
[422992800,1779723049000,-500.0,8.493e-05,2]
[422992803,1779723049000,-284.88845994,8.493e-05,2]
[422992799,1779723049000,-500.0,8.219e-05,2]
[422992802,1779723049000,-3312.23,8.493e-05,2]
[422992804,1779723049000,-500.0,8.767e-05,2]
[422992805,1779723049000,-557.96,8.767e-05,2]
[422992809,1779723049000,-3312.23,9.041e-05,2]
[422992807,1779723049000,-500.0,9.041e-05,2]
[422992808,1779723049000,-557.96,9.041e-05,2]
[422992812,1779723049000,-500.0,9.315e-05,2]
[422992815,1779723049000,-5447.96,9.315e-05,2]
[422992849,1779723049000,-458.53710436,9.563e-05,2]
[422992814,1779723049000,-683.49,9.315e-05,2]
[422992811,1779723049000,-500.0,9.315e-05,2]
[422992813,1779723049000,-1098.35,9.315e-05,2]
[422992816,1779723049000,-501.70360642,9.315e-05,2]
[422992817,1779723049000,-500.0,9.315e-05,2]
[422992819,1779723049000,-697.94,9.315e-05,2]
[422992824,1779723049000,-91.72112693,9.315e-05,2]
[422992820,1779723049000,-500.0,9.315e-05,2]
[422992847,1779723049000,-362.72586341,9.524e-05,2]
[422992845,1779723049000,-244.0,9.378e-05,2]
[422992852,1779723049000,-342.48865353,9.589e-05,7]
[422992883,1779723049000,-744.3,9.589e-05,2]
[422992878,1779723049000,-500.0,9.589e-05,2]
[422992882,1779723049000,-501.26508614,9.589e-05,2]
[422992888,1779723049000,-1134.64,9.589e-05,2]
[422992885,1779723049000,-1585.97,9.589e-05,2]
[422992880,1779723049000,-500.0,9.589e-05,2]
[422992877,1779723049000,-500.0,9.589e-05,2]
[422992879,1779723049000,-426.95036709,9.589e-05,2]
[422992887,1779723049000,-500.0,9.589e-05,2]
[422992884,1779723049000,-500.0,9.589e-05,2]
[422992889,1779723049000,-605.62,9.589e-05,2]
[422992881,1779723049000,-614.49,9.589e-05,2]
[422992892,1779723049000,-500.0,9.589e-05,2]
[422992850,1779723049000,-209.66438325,9.563e-05,2]
[422992895,1779723049000,-500.0,9.589e-05,2]
[422992896,1779723049000,-500.0,9.589e-05,2]
[422992890,1779723049000,-789.92,9.589e-05,2]
[422992894,1779723049000,-501.88424725,9.589e-05,2]
[422992897,1779723049000,-500.0,9.589e-05,2]
[422992893,1779723049000,-684.15,9.589e-05,2]
[422992899,1779723049000,-560.52730279,9.589e-05,2]
[422992900,1779723049000,-500.0,9.589e-05,2]
[422992901,1779723049000,-1621.16,9.589e-05,2]
[422992902,1779723049000,-500.0,9.589e-05,2]
[422992891,1779723049000,-715.46,9.589e-05,2]
[422992875,1779723049000,-314.64553126,9.589e-05,2]
[422992898,1779723049000,-500.0,9.589e-05,2]
[422992876,1779723049000,-500.0,9.589e-05,2]
[422992855,1779723049000,-500.0,9.589e-05,2]
[422992886,1779723049000,-500.0,9.589e-05,2]
[422992856,1779723049000,-500.0,9.589e-05,2]
[422992854,1779723049000,-1094.4034,9.589e-05,2]
[422992853,1779723049000,-480.30830077,9.589e-05,7]
[422992861,1779723049000,-500.0,9.589e-05,2]
[422992858,1779723049000,-500.0,9.589e-05,2]
[422992857,1779723049000,-500.0,9.589e-05,2]
[422992859,1779723049000,-500.0,9.589e-05,2]
[422992860,1779723049000,-500.0,9.589e-05,2]
[422992870,1779723049000,-500.0,9.589e-05,2]
[422992851,1779723049000,-205.06242901,9.563e-05,2]
[422992869,1779723049000,-500.0,9.589e-05,2]
[422992868,1779723049000,-514.91,9.589e-05,2]
[422992874,1779723049000,-500.0,9.589e-05,2]
[422992863,1779723049000,-500.0,9.589e-05,2]
[422992866,1779723049000,-500.0,9.589e-05,2]
[422992867,1779723049000,-1530.05,9.589e-05,2]
[422992862,1779723049000,-500.0,9.589e-05,2]
[422992865,1779723049000,-500.0,9.589e-05,2]
[422992872,1779723049000,-500.0,9.589e-05,2]
[422992871,1779723049000,-500.0,9.589e-05,2]
[422992864,1779723049000,-500.0,9.589e-05,2]
[422992873,1779723049000,-500.0,9.589e-05,2]
[422992925,1779723050000,-500.0,9.589e-05,2]
[422992919,1779723050000,-1098.35,9.589e-05,2]
[422992923,1779723050000,-500.0,9.589e-05,2]
[422992921,1779723050000,-5447.96,9.589e-05,2]
[422992920,1779723050000,-683.49,9.589e-05,2]
[422992926,1779723050000,-833.59,9.589e-05,2]
[422992929,1779723050000,-500.0,9.589e-05,2]
[422992938,1779723050000,-1043.53,9.589e-05,2]
[422992930,1779723050000,-824.05,9.589e-05,2]
[422992927,1779723050000,-543.13,9.589e-05,2]
[422992933,1779723050000,-500.0,9.589e-05,2]
[422992931,1779723050000,-13010.11,9.589e-05,2]
[422992918,1779723050000,-500.0,9.589e-05,2]
[422992928,1779723050000,-481.9900386,9.589e-05,2]
[422992916,1779723050000,-5119.19,9.589e-05,2]
[422992910,1779723050000,-500.0,9.589e-05,2]
[422992917,1779723050000,-500.0,9.589e-05,2]
[422992934,1779723050000,-769.33,9.589e-05,2]
[422992906,1779723050000,-500.0,9.589e-05,2]
[422992903,1779723050000,-500.0,9.589e-05,2]
[422992908,1779723050000,-794.19,9.589e-05,2]
[422992911,1779723050000,-500.0,9.589e-05,2]
[422992904,1779723050000,-500.0,9.589e-05,2]
[422992924,1779723050000,-697.94,9.589e-05,2]
[422992905,1779723050000,-803.04,9.589e-05,2]
[422992909,1779723050000,-500.0,9.589e-05,2]
[422992912,1779723050000,-633.5,9.589e-05,2]
[422992913,1779723050000,-515.25,9.589e-05,2]
[422992915,1779723050000,-1578.88,9.589e-05,2]
[422992914,1779723050000,-527.78,9.589e-05,2]
[422992922,1779723050000,-500.0,9.589e-05,2]
[422992907,1779723050000,-500.0,9.589e-05,2]
[422992937,1779723050000,-587.9,9.589e-05,2]
[422992948,1779723050000,-375.63798418,9.589e-05,7]
[422992932,1779723050000,-500.0,9.589e-05,2]
[422992970,1779723050000,-233.25457421,9.863e-05,2]
[422992969,1779723050000,-1094.4034,9.863e-05,2]
[422992966,1779723050000,-422.52028445,9.755e-05,2]
[422992968,1779723050000,-2848.61767564,9.837e-05,2]
[422992967,1779723050000,-187.32519139,9.824e-05,2]
[422992965,1779723050000,-5600.60916339,9.755e-05,2]
[422992964,1779723050000,-524.631388,9.591e-05,7]
[422992962,1779723050000,-621.76038195,9.589e-05,7]
[422992961,1779723050000,-288.80896801,9.589e-05,7]
[422992963,1779723050000,-509.19009863,9.589e-05,7]
[422992960,1779723050000,-500.0,9.041e-05,2]
[422992958,1779723050000,-500.0,8.493e-05,2]
[422992959,1779723050000,-500.0,8.767e-05,2]
[422992956,1779723050000,-520.73208692,9.589e-05,7]
[422992957,1779723050000,-257.93309631,9.589e-05,7]
[422992955,1779723050000,-524.1608872,9.589e-05,7]
[422992952,1779723050000,-464.27731129,9.589e-05,7]
[422992936,1779723050000,-500.0,9.589e-05,2]
[422992939,1779723050000,-500.0,9.589e-05,2]
[422992943,1779723050000,-3312.23,9.589e-05,2]
[422992942,1779723050000,-557.96,9.589e-05,2]
[422992941,1779723050000,-500.0,9.589e-05,2]
[422992954,1779723050000,-162.60136128,9.589e-05,7]
[422992944,1779723050000,-500.0,9.589e-05,2]
[422992940,1779723050000,-547.81,9.589e-05,2]
[422992946,1779723050000,-151.0,9.589e-05,2]
[422992947,1779723050000,-106.54538358,9.589e-05,7]
[422992949,1779723050000,-463.71786388,9.589e-05,7]
[422992951,1779723050000,-535.66537202,9.589e-05,7]
[422992950,1779723050000,-469.72206229,9.589e-05,7]
[422992953,1779723050000,-491.75142348,9.589e-05,7]
[422992945,1779723050000,-151.0,9.589e-05,2]
[422992935,1779723050000,-2316.94,9.589e-05,2]
[422992971,1779723072000,-5000.0,8.056e-05,2]
[422992973,1779723073000,152.0,0.00014501,30]
[422992972,1779723073000,152.0,0.00014484,30]
[422992976,1779723156000,150.0,0.00015,30]
[422992977,1779723165000,152.0,0.00014501,30]
[422992978,1779723193000,16670.85752307,0.00015,30]
[422992979,1779723197000,169.20021365,0.00017104,120]
[422992980,1779723201000,322.07,0.000178,120]
[422992981,1779723205000,170.11050967,0.00017279,120]
[422992982,1779723217000,1278.24,0.00017808,120]
[422992983,1779723226000,152.0,0.00014503,30]
[422992988,1779723457000,2069.78,0.00017808,120]